bitfinex-derivatives/quotes_ETHF0:USTF0_20241013
["timestamp","ask_amount","ask_price","bid_price","bid_amount"]
[1728795543300,2.1378,2464.6,2464.5,4.02504009]
[1728795543502,5.3456,2464.6,2464.5,4.02514143]
[1728795544998,5.3456,2464.6,2464.5,4.31193843]
[1728795545904,2.1378,2464.6,2464.5,4.31193843]
[1728795546200,5.3456,2464.6,2464.5,4.9701309]
[1728795546603,2.1378,2464.6,2464.5,4.9701309]
[1728795546802,5.3456,2464.6,2464.5,4.9701309]
[1728795547602,5.3456,2464.6,2464.5,4.84333779]
[1728795547903,5.3456,2464.6,2464.5,4.97071981]
[1728795548304,5.3456,2464.6,2464.5,4.97088433]
[1728795549106,5.3456,2464.6,2464.5,5.47838161]
[1728795550399,5.3456,2464.6,2464.5,5.47838016]
[1728795551206,6.41128922,2464.6,2464.5,4.34478989]
[1728795551415,6.41128922,2464.6,2464.5,3.09102685]
[1728795551713,6.41128922,2464.6,2464.5,4.34500057]
[1728795552214,3.20348922,2464.6,2464.5,6.67399553]
[1728795552397,6.41128922,2464.6,2464.5,6.67399553]
[1728795553006,3.20348922,2464.6,2464.5,6.67399553]
[1728795553205,3.73635827,2464.6,2464.5,9.96707347]
[1728795553811,6.94415827,2464.6,2464.5,9.96707347]
[1728795555412,3.73635827,2464.6,2464.5,9.96707347]
[1728795558121,3.73635827,2464.6,2464.5,9.96804343]
[1728795558620,3.73635827,2464.6,2464.5,9.96805241]
[1728795558918,3.73635827,2464.6,2464.5,9.96875273]
[1728795560725,2.41635827,2464.6,2464.5,9.96875273]
[1728795564222,2.41635827,2464.6,2464.5,7.84275537]
[1728795564825,2.41635827,2464.6,2464.5,9.9699643]
[1728795566419,2.41635827,2464.6,2464.5,8.65000748]
[1728795566615,2.41635827,2464.6,2464.5,6.52275537]
[1728795566818,2.41635827,2464.6,2464.5,8.65001211]
[1728795567225,2.41635827,2464.6,2464.5,6.52275537]
[1728795567525,2.41635827,2464.6,2464.5,8.65002104]
[1728795567720,2.41635827,2464.6,2464.5,6.52275537]
[1728795569928,2.41635827,2464.6,2464.5,5.44569978]
[1728795570119,2.41635827,2464.6,2464.5,6.52299275]
[1728795571522,2.41635827,2464.6,2464.5,8.65026181]
[1728795572829,2.41635827,2464.6,2464.5,8.65129993]
[1728795574324,2.41635827,2464.6,2464.5,9.97129993]
[1728795574522,1.59855827,2464.6,2464.5,7.84403087]
[1728795574730,4.80635827,2464.7,2464.5,10.09737192]
[1728795574923,4.80635827,2464.7,2464.6,10.75484391]
[1728795575126,4.80635827,2464.7,2464.6,11.17064391]
[1728795575622,1.59855827,2464.7,2464.6,9.04351087]
[1728795575932,1.06547321,2464.7,2464.6,11.70267192]
[1728795576232,1.06547321,2464.8,2464.7,0.40578]
[1728795576429,1.06547321,2464.8,2464.7,7.84399087]
[1728795576928,1.06547321,2464.8,2464.7,10.50315192]
[1728795577234,1.06547321,2464.9,2464.8,0.40577]
[1728795577526,1.06547321,2464.9,2464.8,9.15350308]
[1728795577927,1.06547321,2464.9,2464.8,9.9654975]
[1728795578122,1.06547321,2464.9,2464.8,6.67493098]
[1728795580134,5.09387321,2465.0,2464.8,6.0661883]
[1728795580326,5.09387321,2465.0,2464.9,4.13810211]
[1728795580524,6.94695827,2465.0,2464.9,3.2467056]
[1728795580727,11.94156007,2465.0,2464.8,1.06215876]
[1728795580927,3.30770303,2464.9,2464.8,1.06215876]
[1728795581128,0.40577,2464.8,2464.7,1.06215876]
[1728795581328,1.72577,2464.8,2464.7,1.06215876]
[1728795581531,7.91399007,2464.8,2464.6,1.06215876]
[1728795581730,6.53980696,2464.7,2464.6,1.06215876]
[1728795581928,6.94558696,2464.7,2464.6,1.06215876]
[1728795582128,11.53710007,2464.7,2464.5,1.06215876]
[1728795582326,1.7192,2464.6,2464.5,1.06215876]
[1728795582829,5.7768,2464.6,2464.5,1.06215876]
[1728795583636,7.37343071,2464.6,2464.5,1.06215876]
[1728795584827,5.7768,2464.6,2464.5,1.06215876]
[1728795585027,7.3733477,2464.6,2464.5,1.06215876]
[1728795585229,7.37328067,2464.6,2464.4,1.06215876]
[1728795585429,3.31008067,2464.5,2464.4,1.06215876]
[1728795585633,3.31008067,2464.5,2464.4,2.58847969]
[1728795586132,6.51788067,2464.5,2464.4,2.58847969]
[1728795587129,6.51788067,2464.5,2464.4,1.34930163]
[1728795587330,6.51788067,2464.5,2464.4,1.06215876]
[1728795587629,4.9214,2464.5,2464.4,1.34926961]
[1728795587830,6.51788067,2464.5,2464.4,1.34926961]
[1728795588131,4.9214,2464.5,2464.4,1.34926961]
[1728795588332,4.9214,2464.5,2464.4,1.06215876]
[1728795588633,4.9214,2464.5,2464.4,2.38215876]
[1728795589235,5.98547658,2464.5,2464.4,2.38215876]
[1728795592036,2.77767658,2464.5,2464.4,2.38215876]
[1728795592239,5.98547658,2464.5,2464.4,2.38215876]
[1728795592633,2.77767658,2464.5,2464.4,2.38215876]
[1728795592834,5.98547658,2464.5,2464.4,2.38215876]
[1728795594143,2.77767658,2464.5,2464.4,2.38215876]
[1728795594339,5.98547658,2464.5,2464.4,2.38215876]
[1728795594539,5.98547658,2464.5,2464.4,2.76735876]
[1728795595740,2.77767658,2464.5,2464.4,2.76735876]
[1728795595938,5.98547658,2464.5,2464.4,2.76735876]
[1728795597237,2.77767658,2464.5,2464.4,2.76735876]
[1728795598248,5.98547658,2464.5,2464.4,2.76735876]
[1728795598542,4.5278,2464.5,2464.4,4.29283272]
[1728795598845,4.5278,2464.5,2464.4,4.69203272]
[1728795599447,1.32,2464.5,2464.4,4.69203272]
[1728795599949,4.5278,2464.5,2464.4,4.69203272]
[1728795600837,4.5278,2464.5,2464.4,4.4050021]
[1728795601141,4.5278,2464.5,2464.4,4.69197561]
[1728795603141,1.32,2464.5,2464.4,4.69197561]
[1728795603347,3.2078,2464.5,2464.4,4.69197561]
[1728795603556,3.2078,2464.5,2464.4,5.21945602]
[1728795603858,3.2078,2464.5,2464.4,4.15729726]
[1728795604149,3.2078,2464.5,2464.4,5.62490265]
[1728795604340,3.2078,2464.5,2464.4,4.56312726]
[1728795604547,3.2078,2464.5,2464.4,4.15729726]
[1728795604743,3.2078,2464.5,2464.4,4.15729685]
[1728795605944,1.46327658,2464.6,2464.4,4.15729685]
[1728795606252,1.46327658,2464.6,2464.5,1.06172206]
[1728795606457,4.67107658,2464.6,2464.5,1.06172206]
[1728795607153,4.67107658,2464.6,2464.5,2.38172206]
[1728795609554,1.46327658,2464.6,2464.5,2.38172206]
[1728795609749,4.67107658,2464.6,2464.5,2.38172206]
[1728795611048,1.46327658,2464.6,2464.5,2.38172206]
[1728795611248,4.67107658,2464.6,2464.5,2.38172206]
[1728795612549,1.46327658,2464.6,2464.5,2.38172206]
[1728795612753,4.67107658,2464.6,2464.5,2.38172206]
[1728795616455,4.67107658,2464.6,2464.5,2.66865076]
[1728795617249,1.46327658,2464.6,2464.5,2.66865076]
[1728795617446,4.67107658,2464.6,2464.5,2.66865076]
[1728795618057,1.46327658,2464.6,2464.5,2.38172206]
[1728795618253,1.46327658,2464.6,2464.5,2.66865258]
[1728795618557,4.67107658,2464.6,2464.5,2.66865258]
[1728795619951,0.3992,2464.6,2464.5,1.60693052]
[1728795620156,3.607,2464.6,2464.5,1.60693052]
[1728795620360,3.607,2464.6,2464.5,2.66862934]
[1728795620361,4.67068157,2464.6,2464.5,2.66862934]
[1728795620559,1.46288157,2464.6,2464.5,2.66862934]
[1728795620962,4.67068157,2464.6,2464.5,2.66862934]
[1728795621258,1.46288157,2464.6,2464.5,2.66862934]
[1728795621457,4.67068157,2464.6,2464.5,2.66862934]
[1728795621852,1.06368157,2464.6,2464.5,2.66862934]
[1728795622152,1.06368157,2464.6,2464.5,9.48220962]
[1728795622553,1.06368157,2464.6,2464.5,9.98970366]
[1728795622760,2.01082236,2464.7,2464.5,8.92800484]
[1728795622961,2.01082236,2464.7,2464.6,1.60693466]
[1728795623165,0.4153,2464.7,2464.6,1.60693466]
[1728795624066,0.4153,2464.7,2464.6,1.73380706]
[1728795625361,0.4153,2464.7,2464.6,2.24129296]
[1728795626469,2.01245046,2464.7,2464.6,5.07482014]
[1728795628960,1.59715046,2464.7,2464.6,5.48062014]
[1728795629156,1.59715046,2464.7,2464.6,4.9552058]
[1728795629368,1.59715046,2464.7,2464.6,3.94025659]
[1728795629663,1.59715046,2464.7,2464.6,3.81354956]
[1728795629968,1.59715046,2464.7,2464.6,3.94042221]
[1728795630164,1.59715046,2464.7,2464.6,3.48094825]
[1728795630366,1.59715046,2464.7,2464.6,2.24150744]
[1728795631065,2.91715046,2464.7,2464.6,0.92150744]
[1728795631570,2.91715046,2464.7,2464.6,3.75451845]
[1728795633257,2.91715046,2464.7,2464.6,3.34049785]
[1728795633465,2.91715046,2464.7,2464.6,3.75451549]
[1728795637068,2.91715046,2464.7,2464.6,3.62765074]
[1728795637373,2.91715046,2464.7,2464.6,3.75452336]
[1728795640169,2.91715046,2464.7,2464.6,3.75458702]
[1728795640669,2.91715046,2464.7,2464.6,2.83307467]
[1728795640870,2.91715046,2464.7,2464.6,3.75462146]
[1728795642772,7.91291395,2464.7,2464.6,1.34998625]
[1728795642969,0.4058,2464.6,2464.5,1.06280529]
[1728795643175,0.4058,2464.6,2464.5,1.35009112]
[1728795643176,4.67856206,2464.6,2464.5,1.35009112]
[1728795643376,4.67856206,2464.6,2464.5,1.06280529]
[1728795644081,4.67856206,2464.6,2464.5,1.35007724]
[1728795644282,4.67856206,2464.6,2464.5,1.06280529]
[1728795644490,4.67856206,2464.6,2464.4,1.06280529]
[1728795644491,0.40582,2464.5,2464.4,1.06280529]
[1728795644785,0.40583,2464.4,2464.2,1.06280529]
[1728795644993,3.4498781,2464.3,2464.2,1.06280529]
[1728795645385,3.4498781,2464.3,2464.1,1.06280529]
[1728795645585,6.04156576,2464.2,2464.1,1.06280529]
[1728795645785,6.04156576,2464.2,2464.1,1.35008883]
[1728795645988,6.04156576,2464.2,2464.1,2.58981353]
[1728795646184,6.04156576,2464.2,2464.1,1.35008883]
[1728795646995,6.04156576,2464.2,2464.1,2.67008883]
[1728795647387,5.50876678,2464.2,2464.1,2.38280529]
[1728795647592,5.50876678,2464.2,2464.1,2.66996342]
[1728795647794,5.50876678,2464.2,2464.1,2.6699588]
[1728795647992,5.50876678,2464.2,2464.1,2.38280529]
[1728795649494,5.50876678,2464.2,2464.1,1.32]
[1728795653593,4.4447,2464.2,2464.1,1.32]
[1728795655391,5.7647,2464.2,2464.1,1.32]
[1728795657093,2.5569,2464.2,2464.1,1.32]
[1728795657298,5.7647,2464.2,2464.1,1.32]
[1728795659002,10.22897,2464.2,2463.9,1.47030529]
[1728795659192,1.32,2464.0,2463.9,1.47030529]
[1728795659401,1.32,2464.0,2463.9,0.4075]
[1728795660700,4.5278,2464.0,2463.9,0.4075]
[1728795662396,4.9337,2464.0,2463.8,1.47280529]
[1728795662600,1.7124,2463.9,2463.8,0.41]
[1728795663198,0.3924,2463.9,2463.8,0.41]
[1728795663401,3.2078,2464.0,2463.8,0.41]
[1728795663402,3.2078,2464.0,2463.8,3.19873529]
[1728795663605,3.2078,2464.0,2463.9,1.32]
[1728795670797,4.5278,2464.0,2463.9,1.32]
[1728795674006,1.32,2464.0,2463.9,1.32]
[1728795674207,4.5278,2464.0,2463.9,1.32]
[1728795675607,3.2078,2464.0,2463.9,1.32]
[1728795676218,3.2078,2464.0,2463.9,1.72592]
[1728795676512,3.2078,2464.0,2463.9,2.78872529]
[1728795677106,3.2078,2464.0,2463.9,1.72592]
[1728795677305,3.2078,2464.0,2463.9,2.78872529]
[1728795677707,3.2078,2464.0,2463.9,1.72592]
[1728795678314,3.2078,2464.0,2463.9,2.38280529]
[1728795679707,4.5278,2464.1,2463.9,2.38280529]
[1728795680106,4.5278,2464.1,2464.0,0.3851]
[1728795682406,3.2078,2464.1,2464.0,1.7051]
[1728795683013,3.2078,2464.1,2464.0,0.3851]
[1728795684407,4.27186678,2464.1,2464.0,0.3851]
[1728795685318,4.27186678,2464.1,2464.0,1.44790529]
[1728795687013,4.27186678,2464.1,2464.0,1.73511417]
[1728795687411,4.27186678,2464.1,2464.0,3.10196088]
[1728795687412,3.2078,2464.1,2464.0,3.10196088]
[1728795688217,4.27220538,2464.1,2464.0,4.14057489]
[1728795688515,4.80466576,2464.1,2464.0,4.14057489]
[1728795688820,6.12466576,2464.1,2464.0,4.14057489]
[1728795690217,6.12466576,2464.1,2464.0,4.60091711]
[1728795690413,4.5278,2464.1,2464.0,4.60091711]
[1728795690618,4.5278,2464.1,2464.0,3.00711865]
[1728795690813,1.32,2464.1,2464.0,3.00711865]
[1728795691009,1.32,2464.1,2464.0,3.00919067]
[1728795691217,1.32,2464.1,2464.0,3.00919075]
[1728795691919,4.5278,2464.1,2464.0,3.00919075]
[1728795692818,1.32,2464.1,2464.0,3.00919075]
[1728795693513,1.32,2464.1,2464.0,4.60607283]
[1728795694012,4.5278,2464.1,2464.0,3.00919075]
[1728795694716,1.32,2464.1,2464.0,2.54885839]
[1728795694915,4.5278,2464.1,2464.0,3.00919705]
[1728795695121,4.5278,2464.1,2464.0,2.13426388]
[1728795695316,4.5278,2464.1,2464.0,3.00918209]
[1728795695822,3.2078,2464.1,2464.0,3.21225752]
[1728795696223,3.2078,2464.1,2464.0,3.21225784]
[1728795698511,3.2078,2464.1,2464.0,1.62666994]
[1728795698723,3.2078,2464.1,2464.0,3.21231228]
[1728795700827,4.27337306,2464.1,2464.0,8.23372862]
[1728795701030,4.27337306,2464.1,2464.0,11.30533924]
[1728795701327,1.06557306,2464.1,2464.0,11.30533924]
[1728795701716,1.06557306,2464.1,2464.0,15.36373924]
[1728795701918,2.1298781,2464.4,2464.0,15.36373924]
[1728795701919,1.5983596,2464.3,2464.1,0.40588]
[1728795702128,1.59805812,2464.3,2464.2,4.55134583]
[1728795702317,1.06533266,2464.3,2464.2,9.06023235]
[1728795702622,1.06533266,2464.3,2464.2,7.89789919]
[1728795702825,1.06533266,2464.3,2464.2,10.37957979]
[1728795703418,1.06533266,2464.3,2464.2,7.89789919]
[1728795703619,1.06533266,2464.3,2464.2,10.37891695]
[1728795703919,1.06533266,2464.3,2464.2,10.37896294]
[1728795704119,1.06533266,2464.3,2464.2,7.89789919]
[1728795704420,1.06533266,2464.3,2464.2,7.08583601]
[1728795704728,1.06533266,2464.3,2464.2,6.33776265]
[1728795704919,1.06533266,2464.3,2464.2,7.08510676]
[1728795705521,1.06533266,2464.3,2464.2,4.95648658]
[1728795706022,1.06533266,2464.3,2464.2,4.44886901]
[1728795706223,1.06533266,2464.3,2464.2,4.75339691]
[1728795706920,1.06533266,2464.4,2464.2,4.75339691]
[1728795707123,1.59805812,2464.4,2464.3,5.07857445]
[1728795707322,1.59805812,2464.4,2464.3,5.46387445]
[1728795707618,1.06439968,2464.4,2464.3,5.86972445]
[1728795708131,1.06439968,2464.4,2464.3,5.46387445]
[1728795709327,1.06439968,2464.4,2464.3,4.95631672]
[1728795709525,1.06439968,2464.4,2464.3,3.76720135]
[1728795709724,1.06439968,2464.4,2464.3,5.36216672]
[1728795710128,1.06439968,2464.4,2464.3,5.86780232]
[1728795710331,1.06439968,2464.4,2464.3,4.95440203]
[1728795710523,1.06439968,2464.4,2464.3,3.35943666]
[1728795710729,1.06439968,2464.4,2464.3,4.42244723]
[1728795711027,1.06439968,2464.4,2464.3,3.76528666]
[1728795711221,1.06439968,2464.4,2464.3,4.18488666]
[1728795711420,1.06439968,2464.4,2464.3,6.28740185]
[1728795711619,5.07779968,2464.5,2464.3,6.28740185]
[1728795711827,6.39779968,2464.5,2464.4,3.9100525]
[1728795712027,6.39779968,2464.5,2464.4,3.62262622]
[1728795712324,6.39779968,2464.5,2464.4,2.67004215]
[1728795713332,4.66269968,2464.5,2464.4,4.31529737]
[1728795713633,3.5983,2464.5,2464.4,4.56022059]
[1728795713830,3.5983,2464.5,2464.4,5.48176684]
[1728795714234,3.2078,2464.5,2464.4,5.48176684]
[1728795714629,3.2078,2464.5,2464.4,5.3548857]
[1728795714821,3.2078,2464.5,2464.4,4.24234108]
[1728795715028,3.2078,2464.5,2464.4,5.48125677]
[1728795716228,3.2078,2464.5,2464.4,4.56790219]
[1728795716739,3.2078,2464.5,2464.4,3.24790219]
[1728795716930,3.2078,2464.5,2464.4,3.90813627]
[1728795719927,3.6286,2464.5,2464.4,3.90813627]
[1728795721936,4.9486,2464.5,2464.4,1.06208005]
[1728795722138,5.3355,2464.5,2464.4,1.06208005]
[1728795723726,5.3355,2464.5,2464.3,2.76738005]
[1728795724331,5.3355,2464.5,2464.4,1.06208005]
[1728795725141,5.3355,2464.5,2464.3,2.76738005]
[1728795726538,5.3355,2464.5,2464.4,1.06208005]
[1728795727137,5.3355,2464.5,2464.3,2.76738005]
[1728795727946,5.3355,2464.5,2464.4,1.06208005]
[1728795731548,4.0155,2464.5,2464.4,1.06208005]
[1728795732746,4.0155,2464.5,2464.4,2.38208005]
[1728795734045,0.8077,2464.5,2464.4,2.38208005]
[1728795736251,0.8077,2464.5,2464.4,2.66912251]
[1728795736747,0.8077,2464.5,2464.4,3.90787316]
[1728795737150,0.8077,2464.5,2464.4,2.66912251]
[1728795737450,0.8077,2464.5,2464.4,3.90797175]
[1728795737652,0.8077,2464.5,2464.4,3.90798309]
[1728795737947,0.8077,2464.5,2464.4,3.62092929]
[1728795738139,0.8077,2464.5,2464.4,4.31380745]
[1728795738454,0.4208,2464.5,2464.4,4.97357362]
[1728795738747,0.4208,2464.5,2464.4,5.48109333]
[1728795738949,3.2078,2464.6,2464.4,5.48109333]
[1728795739153,3.2078,2464.6,2464.5,2.80663182]
[1728795739354,3.2078,2464.6,2464.5,3.09370861]
[1728795740042,3.2078,2464.6,2464.5,4.33261165]
[1728795740442,3.2078,2464.6,2464.5,4.86530719]
[1728795740643,3.2078,2464.6,2464.5,4.73843165]
[1728795741350,3.2078,2464.6,2464.5,5.90552679]
[1728795741556,3.2078,2464.6,2464.5,5.49157659]
[1728795741760,3.2078,2464.6,2464.5,6.41312672]
[1728795741959,3.2078,2464.6,2464.5,5.90563854]
[1728795744044,3.2078,2464.6,2464.5,6.89875208]
[1728795744254,3.2078,2464.6,2464.5,10.38756229]
[1728795746459,3.2078,2464.6,2464.5,10.38760692]
[1728795746957,0.4079,2464.7,2464.5,10.38760692]
[1728795747155,0.4079,2464.7,2464.6,3.93995672]
[1728795748256,0.4079,2464.7,2464.6,4.36425672]
[1728795748460,0.4079,2464.7,2464.6,4.77005672]
[1728795748758,0.4079,2464.7,2464.6,4.36425672]
[1728795748959,0.4079,2464.7,2464.6,4.36425512]
[1728795751153,0.4079,2464.7,2464.6,3.12521273]
[1728795751462,0.4079,2464.7,2464.6,4.36440845]
[1728795752559,0.4079,2464.7,2464.6,4.77022363]
[1728795753258,0.4079,2464.7,2464.6,4.77020374]
[1728795753962,4.27219968,2464.8,2464.6,4.77020374]
[1728795754162,4.27219968,2464.8,2464.7,5.07434362]
[1728795755161,4.27219968,2464.8,2464.7,4.56686103]
[1728795755359,4.27219968,2464.8,2464.7,5.07434138]
[1728795756052,4.27219968,2464.8,2464.7,5.07391238]
[1728795756259,4.27219968,2464.8,2464.7,4.15243875]
[1728795756455,1.06439968,2464.8,2464.7,5.07382169]
[1728795756664,4.27219968,2464.8,2464.7,5.07382169]
[1728795757264,4.27219968,2464.8,2464.7,4.56634566]
[1728795757863,4.27219968,2464.8,2464.7,5.07382872]
[1728795758367,4.27219968,2464.8,2464.7,5.0738286]
[1728795759065,1.06439968,2464.8,2464.7,5.0738286]
[1728795759565,4.27219968,2464.8,2464.7,4.56634566]
[1728795760070,1.06439968,2464.8,2464.7,4.65992691]
[1728795760360,4.27219968,2464.8,2464.7,5.5813484]
[1728795761156,4.27219968,2464.8,2464.7,5.0738662]
[1728795761565,1.06439968,2464.8,2464.7,5.0738662]
[1728795761865,4.27219968,2464.8,2464.7,3.48019417]
[1728795762366,4.27219968,2464.8,2464.7,5.0738662]
[1728795762768,4.27219968,2464.8,2464.7,4.566384]
[1728795763664,4.27219968,2464.8,2464.7,5.07386758]
[1728795763865,4.27219968,2464.8,2464.7,4.65992233]
[1728795764064,4.27219968,2464.8,2464.7,5.14244848]
[1728795766267,4.27219968,2464.8,2464.7,5.22434848]
[1728795767660,4.27219968,2464.8,2464.7,4.81042233]
[1728795767868,4.27219968,2464.8,2464.7,5.22436012]
[1728795768580,4.27219968,2464.8,2464.7,3.9855934]
[1728795768776,4.27219968,2464.8,2464.7,5.24280102]
[1728795768969,1.06439968,2464.8,2464.7,5.24280102]
[1728795769169,4.27219968,2464.8,2464.7,5.24280102]
[1728795770077,1.06439968,2464.8,2464.7,5.24280102]
[1728795770281,4.27219968,2464.8,2464.7,5.24280102]
[1728795770575,4.27219968,2464.8,2464.7,5.24288601]
[1728795772475,4.27219968,2464.8,2464.7,5.24287682]
[1728795775178,4.27219968,2464.8,2464.7,4.32146464]
[1728795775378,4.27219968,2464.8,2464.7,4.73571229]
[1728795775571,4.27219968,2464.8,2464.7,4.73570973]
[1728795775775,4.27219968,2464.8,2464.7,5.24317633]
[1728795776177,4.27219968,2464.8,2464.7,5.75064707]
[1728795777678,3.2078,2464.8,2464.7,4.61650099]
[1728795777877,4.27219968,2464.8,2464.7,6.21040726]
[1728795778983,4.27219968,2464.8,2464.7,6.08353958]
[1728795779179,4.27219968,2464.8,2464.7,4.61649958]
[1728795779180,1.06439968,2464.8,2464.7,4.61649958]
[1728795779379,4.27219968,2464.8,2464.7,4.61649958]
[1728795779987,4.27219968,2464.8,2464.7,6.21059419]
[1728795780189,4.27219968,2464.8,2464.7,6.21073237]
[1728795780584,4.27219968,2464.8,2464.7,4.61649958]
[1728795780781,4.27219968,2464.8,2464.7,6.21070742]
[1728795781081,4.27219968,2464.8,2464.7,4.61649958]
[1728795781587,4.27219968,2464.8,2464.7,4.61672743]
[1728795782482,4.27219968,2464.8,2464.7,3.23547832]
[1728795782681,4.27219968,2464.8,2464.7,4.10933476]
[1728795782884,4.27219968,2464.8,2464.7,4.61680224]
[1728795783194,4.27219968,2464.8,2464.7,4.31231862]
[1728795783488,1.06439968,2464.8,2464.7,4.31296047]
[1728795784095,4.27219968,2464.8,2464.7,4.31296047]
[1728795784281,4.80585812,2464.8,2464.7,6.43737304]
[1728795785085,1.59805812,2464.8,2464.7,6.43737304]
[1728795785286,4.80585812,2464.8,2464.7,7.24960859]
[1728795785790,1.59805812,2464.8,2464.7,7.24960859]
[1728795785986,4.80585812,2464.8,2464.7,7.24960859]
[1728795786991,1.59805812,2464.8,2464.7,7.24960859]
[1728795787192,1.59805812,2464.8,2464.7,9.73073427]
[1728795787887,4.80585812,2464.8,2464.7,9.73145263]
[1728795788282,1.59805812,2464.8,2464.7,9.73145263]
[1728795788583,1.59805812,2464.8,2464.7,3.92691741]
[1728795788584,11.1210481,2464.8,2464.7,3.92691741]
[1728795788787,8.99117,2464.8,2464.7,2.60024675]
[1728795788982,11.65308744,2464.8,2464.7,1.52035005]
[1728795789185,11.65308744,2464.8,2464.7,1.64722873]
[1728795789490,11.65308744,2464.8,2464.7,1.52035005]
[1728795790293,8.99117,2464.8,2464.7,1.2327821]
[1728795790693,5.78337,2464.8,2464.7,1.2327821]
[1728795790886,8.99117,2464.8,2464.7,1.2327821]
[1728795791191,8.99117,2464.8,2464.7,0.1687]
[1728795791496,5.78337,2464.8,2464.7,0.1687]
[1728795791794,8.99117,2464.8,2464.7,0.1687]
[1728795792594,5.78337,2464.8,2464.7,0.1687]
[1728795793394,11.12063087,2464.8,2464.7,0.1687]
[1728795793784,6.18706087,2464.8,2464.7,0.1687]
[1728795793990,10.71486087,2464.8,2464.7,0.1687]
[1728795795786,11.12063087,2464.8,2464.7,0.1687]
[1728795796194,10.71486087,2464.8,2464.7,0.1687]
[1728795797899,9.39486087,2464.8,2464.7,0.1687]
[1728795798201,10.71486087,2464.8,2464.7,0.1687]
[1728795800296,7.50706087,2464.8,2464.7,0.1687]
[1728795800696,10.71486087,2464.8,2464.7,0.1687]
[1728795800895,6.65726087,2464.8,2464.7,0.1687]
[1728795801299,4.5278,2464.8,2464.7,0.1687]
[1728795803298,1.32,2464.8,2464.7,0.1687]
[1728795803499,4.5278,2464.8,2464.7,0.1687]
[1728795806003,6.65726087,2464.8,2464.7,0.1687]
[1728795806304,4.5278,2464.8,2464.7,0.1687]
[1728795807603,6.65726087,2464.8,2464.7,0.1687]
[1728795807902,4.5278,2464.8,2464.7,0.1687]
[1728795808103,6.65726087,2464.8,2464.7,0.1687]
[1728795808299,4.5278,2464.8,2464.7,0.1687]
[1728795808504,1.32,2464.8,2464.7,0.1687]
[1728795808695,4.5278,2464.8,2464.7,0.1687]
[1728795809302,1.32,2464.8,2464.7,0.1687]
[1728795810299,4.5278,2464.8,2464.7,0.1687]
[1728795811301,1.32,2464.8,2464.7,0.1687]
[1728795811605,4.5278,2464.8,2464.7,0.1687]
[1728795812398,1.32,2464.8,2464.7,0.1687]
[1728795812599,4.5278,2464.8,2464.7,0.1687]
[1728795813302,1.32,2464.8,2464.7,0.1687]
[1728795813707,4.5278,2464.8,2464.7,0.1687]
[1728795814104,1.32,2464.8,2464.7,0.1687]
[1728795814501,4.5278,2464.8,2464.7,0.1687]
[1728795815512,6.65726087,2464.8,2464.7,0.1687]
[1728795816312,3.44946087,2464.8,2464.7,0.1687]
[1728795816515,6.65726087,2464.8,2464.7,0.1687]
[1728795816814,3.44946087,2464.8,2464.7,0.1687]
[1728795817012,5.33726087,2464.8,2464.7,0.1687]
[1728795817213,4.5278,2464.8,2464.7,1.2327821]
[1728795817607,6.12421343,2464.8,2464.7,1.2327821]
[1728795818611,4.5278,2464.8,2464.7,1.2327821]
[1728795819204,1.32,2464.8,2464.7,1.2327821]
[1728795819411,4.5278,2464.8,2464.7,1.2327821]
[1728795819814,1.32,2464.8,2464.7,1.2327821]
[1728795820014,4.5278,2464.8,2464.7,1.2327821]
[1728795820417,4.5278,2464.8,2464.7,0.1687]
[1728795822111,4.5278,2464.8,2464.7,1.2327821]
[1728795823016,4.5278,2464.8,2464.7,1.52007992]
[1728795823715,3.2078,2464.8,2464.7,2.84007992]
[1728795823922,4.80451717,2464.8,2464.7,4.20680186]
[1728795824221,6.12451717,2464.8,2464.7,5.24608732]
[1728795824431,6.12451717,2464.8,2464.7,4.05598276]
[1728795825311,6.12451717,2464.8,2464.7,5.65186732]
[1728795825507,6.12451717,2464.8,2464.7,5.01751346]
[1728795825715,6.12451717,2464.8,2464.7,5.14438408]
[1728795825925,6.12451717,2464.8,2464.7,5.24608841]
[1728795826115,6.12451717,2464.8,2464.7,4.73860592]
[1728795826618,6.12451717,2464.8,2464.7,5.24608841]
[1728795828921,2.91671717,2464.8,2464.7,5.24608841]
[1728795829122,6.12451717,2464.8,2464.7,5.24608841]
[1728795829422,6.12451717,2464.8,2464.7,5.24616163]
[1728795829624,6.12451717,2464.8,2464.7,3.92616163]
[1728795832313,6.12451717,2464.8,2464.7,4.33194163]
[1728795832815,6.12451717,2464.8,2464.7,5.24616163]
[1728795833123,4.5278,2464.8,2464.7,5.24623991]
[1728795833509,1.32,2464.8,2464.7,5.24623991]
[1728795834012,4.5278,2464.8,2464.7,5.24623991]
[1728795836023,4.5278,2464.8,2464.7,5.24704193]
[1728795836223,6.12523797,2464.8,2464.7,5.24704193]
[1728795836420,6.12523797,2464.8,2464.7,4.95959118]
[1728795836722,6.12523797,2464.8,2464.7,3.41959989]
[1728795836922,4.5278,2464.8,2464.7,3.92707453]
[1728795837420,4.5278,2464.8,2464.7,2.33118997]
[1728795837421,7.06303087,2464.8,2464.7,2.33118997]
[1728795837612,7.06303087,2464.8,2464.7,2.88775914]
[1728795837811,7.06303087,2464.8,2464.7,2.60026794]
[1728795838016,7.06303087,2464.8,2464.7,2.88782993]
[1728795838920,7.06303087,2464.8,2464.7,3.03562993]
[1728795840226,7.06303087,2464.8,2464.7,2.62119714]
[1728795840531,7.06303087,2464.8,2464.7,1.79500607]
[1728795840718,7.06303087,2464.8,2464.7,3.03611482]
[1728795841321,6.65726087,2464.8,2464.7,2.885484]
[1728795841522,4.93357,2464.8,2464.7,1.79503817]
[1728795841731,4.93357,2464.8,2464.7,1.66816137]
[1728795842025,7.59548744,2464.8,2464.7,0.3165]
[1728795842625,4.93357,2464.8,2464.7,0.379]
[1728795842927,7.59548744,2464.8,2464.7,0.379]
[1728795843128,4.93357,2464.8,2464.7,0.379]
[1728795843721,7.59548744,2464.8,2464.7,0.379]
[1728795844032,4.93357,2464.8,2464.7,0.379]
[1728795844430,7.59548744,2464.8,2464.7,0.379]
[1728795844825,4.93357,2464.8,2464.7,0.379]
[1728795845025,7.59548744,2464.8,2464.7,0.379]
[1728795845326,4.93357,2464.8,2464.7,0.379]
[1728795845523,7.59548744,2464.8,2464.7,0.379]
[1728795846228,4.93357,2464.8,2464.7,0.379]
[1728795846727,4.5278,2464.8,2464.7,0.379]
[1728795847423,7.18971744,2464.8,2464.7,0.379]
[1728795848133,7.59548744,2464.8,2464.7,0.379]
[1728795849833,4.93357,2464.8,2464.7,0.379]
[1728795851226,4.5278,2464.8,2464.7,0.379]